bitfinex-derivatives/quotes_ETHF0:USTF0_20250428
["timestamp","ask_amount","ask_price","bid_price","bid_amount"]
[1745844089861,2.83877,1812.3,1812.2,5.16483]
[1745844090461,1.7357,1812.3,1812.2,5.16483]
[1745844090958,1.10298,1812.5,1812.4,1.10295]
[1745844091154,1.10303,1812.4,1812.3,1.10302]
[1745844091857,0.8698,1812.6,1812.5,1.10295]
[1745844092060,2.81106,1812.7,1812.6,1.10289]
[1745844092855,2.81106,1812.7,1812.6,1.95779]
[1745844093556,2.90141344,1812.7,1812.6,0.8549]
[1745844093760,2.81106,1812.7,1812.6,0.8549]
[1745844094265,2.81106,1812.7,1812.6,1.95779]
[1745844094569,1.10289,1812.6,1812.5,5.14691]
[1745844094861,1.10295,1812.5,1812.4,3.53976]
[1745844095067,1.10295,1812.5,1812.4,1.95786]
[1745844095258,1.10295,1812.5,1812.4,0.8549]
[1745844095459,1.10295,1812.5,1812.4,1.95791]
[1745844095763,2.84955,1812.5,1812.4,1.95791]
[1745844095955,2.84955,1812.5,1812.4,0.8549]
[1745844096150,1.10301,1812.4,1812.3,1.10302]
[1745844096360,2.84961,1812.4,1812.3,1.10302]
[1745844097264,1.10293,1812.6,1812.5,1.10289]
[1745844097561,2.79113,1812.6,1812.5,1.10289]
[1745844099859,1.10283,1812.7,1812.6,1.10289]
[1745844100066,2.79103,1812.7,1812.6,1.10289]
[1745844101761,2.79103,1812.7,1812.6,1.92579]
[1745844103160,2.79103,1812.7,1812.6,3.58219]
[1745844104061,1.10289,1812.6,1812.5,1.10292]
[1745844104260,1.10295,1812.5,1812.4,0.8578]
[1745844104462,0.8639,1812.5,1812.1,3.2078]
[1745844104765,1.10313,1812.3,1812.2,1.96088]
[1745844105164,2.75773,1812.3,1812.2,1.96088]
[1745844105665,2.75773,1812.3,1812.2,3.69148]
[1745844105968,2.75773,1812.3,1812.2,1.96093]
[1745844107260,2.75773,1812.3,1812.2,3.66443]
[1745844107659,2.75773,1812.3,1812.2,1.96093]
[1745844107865,2.75773,1812.3,1812.2,1.10313]
[1745844109865,0.8639,1812.5,1812.2,3.86094]
[1745844110065,3.62681,1812.5,1812.4,1.10301]
[1745844110556,3.62681,1812.5,1812.4,3.59871]
[1745844111662,2.76291,1812.5,1812.4,3.59871]
[1745844112462,2.76291,1812.5,1812.4,0.8295]
[1745844112664,1.10307,1812.3,1812.2,2.73238]
[1745844115570,2.68876,1812.4,1812.3,1.10307]
[1745844119066,2.68876,1812.4,1812.3,1.89447]
[1745844119872,2.68876,1812.4,1812.3,3.48307]
[1745844120464,1.103,1812.5,1812.4,1.10295]
[1745844120664,1.103,1812.5,1812.4,2.69155]
[1745844121570,2.7286,1812.5,1812.4,2.69155]
[1745844121874,1.6256,1812.5,1812.4,2.69155]
[1745844122069,5.10622,1812.6,1812.5,1.10295]
[1745844122273,6.73182,1812.6,1812.5,3.63885]
[1745844125272,6.73182,1812.6,1812.5,3.63885]
[1745844125572,1.10289,1812.6,1812.5,3.6388]
[1745844129668,1.6843,1812.7,1812.6,1.10289]
[1745844129873,1.10279,1812.9,1812.8,1.10273]
[1745844130075,1.10279,1812.9,1812.8,5.95693]
[1745844130779,2.79199,1813.0,1812.9,1.1027]
[1745844130965,2.79199,1813.0,1812.9,3.5947]
[1745844131472,2.79199,1813.0,1812.9,2.492]
[1745844133572,2.79199,1813.0,1812.9,3.5947]
[1745844133973,2.79199,1813.0,1812.9,4.3919]
[1745844134681,2.79199,1813.0,1812.9,3.2892]
[1745844135181,2.79199,1813.0,1812.9,4.3919]
[1745844136072,2.75631,1813.2,1812.9,3.2892]
[1745844136279,2.76607,1813.2,1813.1,1.10258]
[1745844136479,1.10258,1813.1,1813.0,2.84949]
[1745844136678,2.76608,1813.1,1813.0,2.84949]
[1745844137075,1.10258,1813.1,1813.0,2.84949]
[1745844138386,2.77717,1813.2,1813.1,1.10258]
[1745844138580,2.77717,1813.2,1813.1,1.7203]
[1745844138977,1.10258,1813.1,1813.0,1.1026]
[1745844139287,2.77718,1813.1,1813.0,1.1026]
[1745844140277,2.77718,1813.1,1813.0,2.7763]
[1745844140478,1.10264,1813.0,1812.9,2.72215]
[1745844140681,2.77824,1813.0,1812.9,2.72215]
[1745844141184,2.77824,1813.0,1812.9,4.39585]
[1745844141587,1.10264,1813.0,1812.9,4.39585]
[1745844142288,1.1027,1812.9,1812.8,3.2078]
[1745844142582,2.75749,1812.5,1812.1,2.5085]
[1745844142883,2.75749,1812.5,1812.0,3.2078]
[1745844142884,1.10319,1812.1,1812.0,0.8574]
[1745844143281,2.74639,1812.1,1812.0,0.8574]
[1745844143877,3.2078,1812.2,1812.1,1.10319]
[1745844144078,5.6861,1812.4,1812.2,1.10311]
[1745844144375,1.10311,1812.3,1812.2,1.10311]
[1745844145489,1.10313,1812.2,1812.1,2.80127]
[1745844147889,1.10313,1812.2,1812.1,1.6981]
[1745844148090,2.74632,1812.3,1812.1,1.6981]
[1745844148279,2.74632,1812.3,1812.2,1.10313]
[1745844148484,1.10313,1812.2,1812.1,2.80124]
[1745844148788,2.74631,1812.3,1812.2,1.10313]
[1745844148990,2.74631,1812.3,1812.2,2.81073]
[1745844149792,1.10311,1812.3,1812.2,2.81073]
[1745844150096,1.10311,1812.3,1812.2,1.7076]
[1745844150293,2.71371,1812.3,1812.2,1.7076]
[1745844150693,2.71371,1812.3,1812.2,2.81073]
[1745844151092,2.71371,1812.3,1812.2,1.7076]
[1745844151795,2.71371,1812.3,1812.2,2.81073]
[1745844152198,2.71371,1812.3,1812.2,1.7076]
[1745844152395,1.10319,1812.1,1812.0,1.9606]
[1745844152596,1.10319,1812.1,1812.0,0.8574]
[1745844153297,2.78029,1812.1,1812.0,0.8574]
[1745844154499,3.21302468,1812.1,1812.0,0.8574]
[1745844154700,2.78029,1812.1,1812.0,0.8574]
[1745844155198,1.10331,1811.9,1811.8,1.93814]
[1745844155399,1.10331,1811.9,1811.8,2.73184]
[1745844155600,1.10331,1811.9,1811.8,4.46874]
[1745844157996,1.10331,1811.9,1811.8,3.3654]
[1745844158202,2.82519,1812.0,1811.9,1.10331]
[1745844158404,2.82519,1812.0,1811.9,2.68341]
[1745844160604,2.82519,1812.0,1811.9,1.5801]
[1745844160802,1.10331,1811.9,1811.8,2.73185]
[1745844161107,2.74391,1811.9,1811.8,1.6285]
[1745844161399,2.74391,1811.9,1811.8,0.7937]
[1745844161607,1.10343,1811.7,1811.6,4.85146]
[1745844162202,1.10343,1811.7,1811.6,6.52546]
[1745844163110,2.80323,1811.7,1811.6,6.52546]
[1745844164212,1.6998,1811.7,1811.6,6.52546]
[1745844164817,2.80323,1811.7,1811.6,6.52546]
[1745844165117,1.6998,1811.7,1811.6,6.52546]
[1745844165617,2.80323,1811.7,1811.6,6.52546]
[1745844167516,1.10324,1812.1,1811.6,5.422]
[1745844167713,2.8189,1812.1,1812.0,1.10325]
[1745844168315,1.7157,1812.1,1812.0,1.10325]
[1745844168516,2.81889,1812.1,1812.0,1.10325]
[1745844168818,2.81889,1812.1,1812.0,2.72675]
[1745844171219,2.81889,1812.1,1812.0,1.10325]
[1745844171919,1.10337,1811.9,1811.8,1.10332]
[1745844172414,3.52227,1811.9,1811.8,1.10332]
[1745844173726,2.4189,1811.9,1811.8,1.10332]
[1745844174324,1.6192,1811.9,1811.8,1.10332]
[1745844174522,1.6192,1811.9,1811.8,2.73502]
[1745844175924,2.72251,1811.9,1811.8,2.73502]
[1745844176217,0.8481,1812.1,1811.8,2.73502]
[1745844176422,2.72079,1812.1,1812.0,1.10325]
[1745844176826,2.72079,1812.1,1812.0,1.92525]
[1745844177921,1.6176,1812.1,1812.0,3.64865]
[1745844178125,3.2078,1812.2,1812.1,1.10319]
[1745844178423,4.31081,1812.4,1812.3,1.10301]
[1745844178625,5.91731,1812.4,1812.3,1.10301]
[1745844178922,3.2078,1812.4,1812.3,1.10301]
[1745844179425,3.2078,1812.4,1812.3,2.82641]
[1745844180219,3.2078,1812.4,1812.3,6.62841]
[1745844181125,3.2078,1812.4,1812.3,2.82641]
[1745844182527,1.6065,1812.6,1812.5,1.10295]
[1745844183424,1.6065,1812.6,1812.5,2.70545]
[1745844183623,4.3106,1812.8,1812.5,1.6025]
[1745844183827,6.0601,1812.8,1812.7,1.10283]
[1745844184016,3.2078,1813.0,1812.7,1.10283]
[1745844184215,1.733,1813.1,1813.0,1.10264]
[1745844184216,0.8665,1813.1,1813.0,1.10264]
[1745844184629,2.616,1813.1,1813.0,1.10264]
[1745844184831,3.71858,1813.1,1813.0,1.10264]
[1745844185335,2.616,1813.1,1813.0,1.10264]
[1745844188033,1.7495,1813.1,1813.0,1.10264]
[1745844188531,1.7495,1813.1,1813.0,1.92874]
[1745844188936,0.7978,1813.3,1813.2,1.10252]
[1745844189231,1.90026,1813.3,1813.2,1.10252]
[1745844189434,5.10806,1813.3,1813.2,1.10252]
[1745844190134,8.91006,1813.3,1813.2,1.10252]
[1745844190334,10.53166,1813.3,1813.2,1.10252]
[1745844191434,14.4292,1813.3,1812.9,3.744]
[1745844191629,1.10263,1813.1,1813.0,1.10259]
[1745844192135,4.90463,1813.1,1813.0,1.10259]
[1745844193338,1.1027,1813.0,1812.9,1.10266]
[1745844193537,3.5983,1813.0,1812.9,1.10266]
[1745844194138,7.4003,1813.0,1812.9,1.10266]
[1745844194331,7.0885,1813.0,1812.9,1.10266]
[1745844194524,6.2976,1813.0,1812.9,1.10266]
[1745844195135,2.4956,1813.0,1812.9,1.10266]
[1745844195436,3.2078,1813.3,1812.8,2.492]
[1745844195631,2.72735,1813.2,1813.1,1.10252]
[1745844197038,1.1027,1813.0,1812.9,1.10268]
[1745844197234,5.96454,1813.0,1812.6,1.10285]
[1745844197436,1.10283,1812.7,1812.6,1.10285]
[1745844197630,1.10295,1812.5,1812.4,1.10296]
[1745844197836,3.2078,1812.5,1812.4,1.10301]
[1745844198336,6.2994,1812.5,1812.4,1.10301]
[1745844199141,2.4974,1812.5,1812.4,1.10301]
[1745844199637,6.80815,1812.5,1812.4,1.10301]
[1745844199839,5.7052,1812.5,1812.4,1.10301]
[1745844200531,6.80815,1812.5,1812.4,1.10301]
[1745844201630,6.80815,1812.5,1812.3,1.7342]
[1745844201839,1.10311,1812.3,1812.2,1.10309]
[1745844202139,4.31091,1812.3,1812.2,1.10309]
[1745844202733,5.10081,1812.3,1812.2,1.10309]
[1745844202942,1.10313,1812.2,1812.1,1.10316]
[1745844203141,3.55693,1812.2,1812.1,1.10316]
[1745844203638,2.4538,1812.2,1812.1,1.10316]
[1745844207842,3.55693,1812.2,1812.1,1.10316]
[1745844208242,1.10319,1812.1,1812.0,4.84621]
[1745844208537,2.69819,1812.1,1812.0,1.10325]
[1745844208938,1.595,1812.1,1812.0,1.10325]
[1745844209134,2.69819,1812.1,1812.0,1.10325]
[1745844211345,6.50019,1812.1,1812.0,1.10325]
[1745844211844,6.50019,1812.1,1811.9,0.8464]
[1745844212035,2.85415,1812.0,1811.9,1.94969]
[1745844217949,1.7509,1812.0,1811.9,1.94969]
[1745844218246,4.5471,1812.2,1811.9,2.4789]
[1745844218247,5.65029,1812.2,1811.9,2.4789]
[1745844218544,7.39879,1812.2,1812.1,1.10319]
[1745844218845,5.74074019,1812.2,1812.1,1.10319]
[1745844219247,1.10319,1812.1,1812.0,2.7087]
[1745844219448,1.10325,1812.0,1811.9,1.94968]
[1745844220140,1.10325,1812.0,1811.9,3.55518]
[1745844220341,3.2078,1812.1,1812.0,1.10325]
[1745844220535,4.31099,1812.1,1812.0,2.70875]
[1745844221946,3.2078,1812.1,1812.0,2.70875]
[1745844222148,4.31099,1812.1,1812.0,2.70875]
[1745844222341,3.2078,1812.1,1812.0,2.70875]
[1745844222541,7.7744,1812.5,1812.3,1.10301]
[1745844222741,1.10306,1812.4,1812.3,1.94091]
[1745844230241,5.98275,1812.5,1812.4,1.10301]
[1745844230447,5.15915,1812.5,1812.4,1.10301]
[1745844231548,1.10301,1812.4,1812.3,1.94091]
[1745844231851,1.10307,1812.3,1812.2,1.10308]
[1745844233458,1.91704,1812.4,1812.3,1.10307]
[1745844233654,1.10304,1812.4,1812.3,1.10307]
[1745844235156,4.90504,1812.4,1812.3,1.10307]
[1745844236161,1.7461,1812.4,1812.3,1.10307]
[1745844236548,2.84911,1812.4,1812.3,1.10307]
[1745844236751,1.7461,1812.4,1812.3,1.10307]
[1745844236953,2.84911,1812.4,1812.3,1.10307]
[1745844237657,1.7461,1812.4,1812.3,1.10307]
[1745844238056,3.2078,1812.5,1812.2,1.7366]
[1745844238256,1.96212,1812.9,1812.8,1.10276]
[1745844238560,1.9621,1812.9,1812.8,1.10276]
[1745844238763,3.682,1812.9,1812.8,1.10276]
[1745844239153,7.484,1812.9,1812.8,1.10276]
[1745844239357,5.5219,1812.9,1812.8,1.10276]
[1745844239557,5.5219,1812.9,1812.8,2.70706]
[1745844240355,1.7199,1812.9,1812.8,2.70706]
[1745844241363,2.8226,1812.9,1812.8,2.70706]
[1745844241761,2.5369,1812.9,1812.8,1.10276]
[1745844242152,0.817,1812.9,1812.8,1.10276]
[1745844242359,3.2078,1813.0,1812.9,1.1027]
[1745844244968,1.6313,1813.2,1813.1,1.10258]
[1745844245667,1.6313,1813.2,1813.1,3.57348]
[1745844248275,2.73382,1813.2,1813.1,1.10258]
[1745844248476,3.53242,1813.2,1813.1,1.10258]
[1745844249160,7.33442,1813.2,1813.1,1.10258]
[1745844249865,1.10264,1813.1,1813.0,1.10261]
[1745844250170,8.63012591,1813.1,1812.6,3.742]
[1745844250369,1.10279,1812.8,1812.7,1.10274]
[1745844250561,1.10274,1812.9,1812.8,1.1027]
[1745844250763,2.84564,1812.9,1812.8,1.1027]
[1745844251060,6.64764,1812.9,1812.8,1.1027]
[1745844251264,5.5449,1812.9,1812.8,1.1027]
[1745844251664,3.802,1812.9,1812.8,1.1027]
[1745844252075,3.802,1812.9,1812.8,4.3105]
[1745844252259,1.7429,1813.0,1812.9,1.1027]
[1745844252461,1.7429,1813.0,1812.9,4.393]
[1745844253067,4.0402,1813.1,1813.0,1.10264]
[1745844253266,3.2078,1813.1,1813.0,2.74234]
[1745844253670,4.8452,1813.1,1813.0,2.74234]
[1745844255374,5.94778,1813.1,1813.0,2.74234]
[1745844255573,5.94778,1813.1,1813.0,1.10264]
[1745844261767,1.10264,1813.0,1812.9,0.8513]
[1745844262079,1.10276,1812.9,1812.8,1.10271]
[1745844262280,7.37469,1813.0,1812.9,1.1027]
[1745844263474,6.272,1813.0,1812.9,1.1027]
[1745844263777,6.55514,1813.0,1812.9,2.8159]
[1745844264177,2.75314,1813.0,1812.9,2.8159]
[1745844265080,6.55514,1813.0,1812.9,1.1027]
[1745844265382,7.37894,1813.0,1812.9,1.1027]
[1745844266080,5.4525,1813.0,1812.9,1.1027]
[1745844266276,5.4525,1813.0,1812.9,2.7052]
[1745844266681,3.802,1813.0,1812.9,2.7052]
[1745844267273,3.67434,1813.2,1813.1,1.10258]
[1745844267480,2.5718,1813.2,1813.1,1.10258]
[1745844267679,3.67432,1813.2,1813.1,1.10258]
[1745844267981,3.67432,1813.2,1813.1,2.81688]
[1745844268881,2.5718,1813.2,1813.1,2.81688]
[1745844269083,3.2078,1813.5,1813.4,1.1024]
[1745844269381,1.614,1813.5,1813.4,1.1024]
[1745844270381,3.2078,1814.3,1813.5,2.75585]
[1745844270684,0.8494,1814.1,1814.0,1.10201]
[1745844271071,3.2078,1814.3,1814.2,1.10191]
[1745844271277,3.29822171,1814.3,1814.2,1.10191]
[1745844271484,3.2078,1814.3,1814.2,1.10191]
[1745844271784,4.8939,1814.3,1814.2,1.10191]
[1745844272081,8.6959,1814.3,1814.2,1.10191]
[1745844272780,9.79775,1814.3,1814.2,1.10191]
[1745844273181,8.6959,1814.3,1814.2,1.10191]
[1745844274277,8.70128518,1814.3,1814.2,1.10191]
[1745844274680,3.80738518,1814.3,1814.2,1.10191]
[1745844274875,3.80738518,1814.3,1814.2,1.96681]
[1745844276480,5.51248518,1814.3,1814.2,1.96681]
[1745844277287,6.61433518,1814.3,1814.2,1.96681]
[1745844277482,1.10195,1814.2,1814.1,1.10193]
[1745844277785,2.80045,1814.2,1814.1,1.10193]
[1745844278090,6.60245,1814.2,1814.1,1.10193]
[1745844278480,5.5005,1814.2,1814.1,1.10193]
[1745844279088,3.802,1814.2,1814.1,1.10193]
[1745844279381,3.802,1814.2,1814.1,3.48263]
[1745844281285,1.10197,1814.1,1814.0,1.10202]
[1745844281486,3.56377,1814.1,1814.0,1.10202]
[1745844282289,7.36577,1814.1,1814.0,1.10202]
[1745844282491,6.2638,1814.1,1814.0,1.10202]
[1745844282790,7.36577,1814.1,1814.0,1.10202]
[1745844284595,5.3882,1814.1,1814.0,1.10202]
[1745844284890,3.802,1814.1,1814.0,1.93112]
[1745844290381,5.493,1814.1,1814.0,1.93112]
[1745844292285,1.691,1814.1,1814.0,1.93112]
[1745844292794,5.47638518,1814.3,1814.2,1.10191]
[1745844293195,6.57823518,1814.3,1814.2,1.10191]
[1745844293492,1.10191,1814.2,1814.1,1.90291]
[1745844293693,2.77091,1814.2,1814.1,1.90291]
[1745844294095,6.57291,1814.2,1814.1,1.90291]
[1745844295294,5.471,1814.2,1814.1,1.90291]
[1745844295497,5.471,1814.2,1814.1,3.60591]
[1745844296196,1.669,1814.2,1814.1,3.60591]
[1745844296496,0.00538518,1814.3,1814.2,1.10191]
[1745844296684,0.00538518,1814.3,1814.2,2.80491]
[1745844297297,0.00538518,1814.3,1814.2,1.10191]
[1745844297498,1.10723518,1814.3,1814.2,1.10191]
[1745844297794,0.00538518,1814.3,1814.2,1.10191]
[1745844298192,5.45098518,1814.3,1814.2,2.80491]
[1745844298495,5.45098518,1814.3,1814.2,1.10191]
[1745844298698,5.45098518,1814.3,1814.2,4.30971]
[1745844298889,3.80738518,1814.3,1814.2,1.10191]
[1745844299095,0.00538518,1814.3,1814.2,1.10191]
[1745844299297,0.00538518,1814.3,1814.2,2.69481]
[1745844300098,3.80738518,1814.3,1814.2,2.69481]
[1745844300596,3.80738518,1814.3,1814.2,1.10191]
[1745844300993,3.80738518,1814.3,1814.2,2.69481]
[1745844301188,5.46888518,1814.3,1814.2,2.69481]
[1745844301497,6.57073518,1814.3,1814.2,1.10191]
[1745844301694,5.46888518,1814.3,1814.2,1.10191]
[1745844302601,6.57073518,1814.3,1814.2,1.10191]
[1745844302898,5.46888518,1814.3,1814.2,1.10191]
[1745844303091,6.57073518,1814.3,1814.2,1.10191]
[1745844303292,5.46888518,1814.3,1814.2,1.10191]
[1745844303491,3.80738518,1814.3,1814.2,1.10191]
[1745844303696,3.80738518,1814.3,1814.2,2.73031]
[1745844304099,4.27996996,1814.3,1814.2,2.45471298]
[1745844304299,4.27996996,1814.3,1814.2,1.6284]
[1745844304503,4.27996996,1814.3,1814.2,2.73031]
[1745844305099,0.47796996,1814.3,1814.2,2.73031]
[1745844305399,0.00538518,1814.3,1814.2,2.73031]
[1745844305595,0.00538518,1814.3,1814.2,7.73031]
[1745844305802,0.00538518,1814.3,1814.2,2.73031]
[1745844307401,0.47094268,1814.3,1814.2,2.73031]
[1745844309204,0.8176,1814.7,1814.6,1.10167]
[1745844309403,1.75,1814.8,1814.7,1.10161]
[1745844309701,1.75,1814.8,1814.7,1.91851]
[1745844309896,2.85155,1814.8,1814.7,1.91851]
[1745844310201,5.552,1814.8,1814.7,1.91851]
[1745844310399,6.65355,1814.8,1814.7,1.91851]
[1745844310605,6.65355,1814.8,1814.7,1.10161]
[1745844310797,5.552,1814.8,1814.7,1.10161]
[1745844311005,2.75406,1814.7,1814.2,5.96255]
[1745844311202,1.1018,1814.5,1814.4,1.10179]
[1745844311605,2.713,1814.5,1814.4,1.10179]
[1745844311903,2.71293,1814.5,1814.4,1.10179]
[1745844312105,6.51493,1814.5,1814.4,1.10179]
[1745844312306,1.10191,1814.3,1814.2,1.10189]
[1745844312897,3.54301,1814.3,1814.2,1.10189]
[1745844313195,7.34501,1814.3,1814.2,1.10189]
[1745844313605,7.34495,1814.3,1814.2,1.10189]
[1745844314601,7.34495,1814.3,1814.2,0.6884495]
[1745844315305,6.2431,1814.3,1814.2,0.6884495]
[1745844315503,5.4132,1814.3,1814.2,0.6884495]
[1745844315904,5.4132,1814.3,1814.2,3.8962495]
[1745844316206,5.4132,1814.3,1814.2,5.5043495]
[1745844316394,5.4132,1814.3,1814.2,2.2965495]
[1745844317811,3.2078,1814.6,1814.5,1.10173]
[1745844318609,1.94275,1814.7,1814.6,1.10167]
[1745844318817,5.15055,1814.7,1814.6,1.10167]
[1745844319108,10.55985,1814.7,1814.6,1.10167]
[1745844319711,1.10179,1814.5,1814.4,1.10176]
[1745844320013,4.30959,1814.5,1814.4,1.10176]
[1745844320306,8.11159,1814.5,1814.4,1.10176]
[1745844320507,8.95649,1814.5,1814.4,1.10176]
[1745844320696,9.04692876,1814.5,1814.4,1.10176]
[1745844320899,8.95649,1814.5,1814.4,1.10176]
[1745844321099,9.04693114,1814.5,1814.4,1.10176]
[1745844321300,9.50383234,1814.5,1814.4,1.10176]
[1745844321500,9.50383336,1814.5,1814.4,1.10176]
[1745844321701,2.75464,1814.3,1814.0,3.733]
[1745844321906,2.75464,1814.3,1814.0,1.102]
[1745844321907,1.10197,1814.1,1814.0,1.102]
[1745844322104,3.3167,1814.2,1814.1,1.10197]
[1745844322304,2.1261012,1814.2,1814.1,1.10197]
[1745844322702,0.4569012,1814.2,1814.1,1.10197]
[1745844322897,0.4569012,1814.2,1814.1,2.68797]
[1745844325205,1.6551,1814.5,1814.4,1.10179]
[1745844325410,3.2078,1814.7,1814.6,1.10167]
[1745844325613,1.6551,1814.8,1814.7,1.10161]
[1745844326000,0.5095,1814.8,1814.7,3.89608614]
[1745844326303,1.10128,1815.3,1815.2,1.10128]
[1745844326704,1.10133,1815.2,1815.1,1.10132]
[1745844326906,4.30913,1815.2,1815.1,1.10132]
[1745844327312,8.11113,1815.2,1815.1,1.10132]
[1745844328509,1.10138,1815.1,1815.0,1.10137]
[1745844328712,1.10146,1815.0,1814.9,1.10142]
[1745844328916,1.10146,1815.0,1814.9,1.10149]
[1745844329116,4.90346,1815.0,1814.9,1.10149]
[1745844329318,6.63886,1815.0,1814.9,1.10149]
[1745844329511,7.45246,1815.0,1814.9,1.10149]
[1745844329916,6.351,1815.0,1814.9,1.10149]
[1745844330115,6.351,1815.0,1814.8,41.9015]
[1745844330313,2.83689,1814.9,1814.8,41.9015]
[1745844330509,1.7354,1814.9,1814.8,41.9015]
[1745844330710,2.83689,1814.9,1814.8,41.9015]
[1745844331007,2.83689,1814.9,1814.8,1.1015]
[1745844331207,6.63889,1814.9,1814.8,1.1015]
[1745844331417,5.5374,1814.9,1814.8,1.1015]
[1745844331716,6.63889,1814.9,1814.8,1.1015]
[1745844332015,5.5374,1814.9,1814.8,1.1015]
[1745844332716,3.802,1814.9,1814.8,2.8089]
[1745844334123,3.2078,1815.2,1815.1,1.10137]
[1745844334522,3.2078,1815.2,1815.0,2.5629]
[1745844334826,3.2078,1815.2,1815.0,1.1014]
[1745844334827,2.71427,1815.1,1815.0,1.1014]
[1745844335218,6.51627,1815.1,1815.0,1.1014]
[1745844335416,5.4149,1815.1,1815.0,1.1014]
[1745844335619,3.802,1815.1,1815.0,2.7214]
[1745844336024,5.4705,1815.1,1815.0,2.7214]
[1745844338324,6.57187,1815.1,1815.0,2.7214]
[1745844338513,5.4705,1815.1,1815.0,2.7214]
[1745844338917,6.57187,1815.1,1815.0,2.7214]
[1745844339224,5.4705,1815.1,1815.0,2.7214]
[1745844339527,1.10143,1815.0,1814.9,4.83344]
[1745844339822,1.6557,1815.0,1814.9,4.83344]
[1745844340023,2.75713,1815.0,1814.9,7.25164]
[1745844340223,6.55913,1815.0,1814.9,7.25164]
[1745844340419,6.55913,1815.0,1814.9,4.83344]
[1745844340615,9.76693,1815.0,1814.9,1.10144]
[1745844340926,1.10149,1814.9,1814.8,1.957]
[1745844341116,6.56609,1814.9,1814.8,1.957]
[1745844342125,1.10165,1814.7,1814.6,1.10161]
[1745844342712,2.76425,1814.7,1814.6,1.10161]
[1745844342912,5.97205,1814.7,1814.6,1.10161]
[1745844343117,9.77401,1814.7,1814.6,1.10161]
[1745844343820,1.10167,1814.6,1814.5,6.5186]
[1745844344018,2.68347,1814.6,1814.5,1.1017]
[1745844345324,5.3838,1814.6,1814.2,44.531]
[1745844345624,1.10185,1814.4,1814.3,1.10181]
[1745844346127,6.48565,1814.4,1814.3,1.10181]
[1745844346424,1.10185,1814.3,1814.2,1.10187]
[1745844346623,2.68365,1814.3,1814.2,1.10187]
[1745844347125,6.48565,1814.3,1814.2,1.10187]
[1745844348117,5.3838,1814.3,1814.2,1.10187]
[1745844348325,5.3838,1814.3,1814.2,2.84577]
[1745844348628,6.48565,1814.3,1814.2,2.84577]
[1745844350130,5.3838,1814.3,1814.2,2.84577]
[1745844350330,6.48565,1814.3,1814.2,2.84577]
[1745844351430,5.3838,1814.3,1814.2,2.84577]
[1745844351631,6.48565,1814.3,1814.2,2.84577]
[1745844352135,5.3838,1814.3,1814.2,2.84577]
[1745844352524,6.48565,1814.3,1814.2,2.84577]
[1745844352725,4.90385,1814.3,1814.2,2.84577]
[1745844354032,3.802,1814.3,1814.2,2.84577]
[1745844354832,4.90385,1814.3,1814.2,2.84577]
[1745844355430,3.802,1814.3,1814.2,2.84577]
[1745844356830,3.802,1814.3,1814.2,6.05357]
[1745844357132,3.802,1814.4,1814.3,1.10185]
[1745844357430,3.802,1814.4,1814.3,2.83435]
[1745844357634,3.2078,1814.7,1814.6,1.10167]
[1745844357928,4.30941,1814.7,1814.6,1.10167]
[1745844358126,8.11141,1814.7,1814.6,1.10167]
[1745844358521,8.11141,1814.7,1814.6,2.83417]
[1745844359233,8.11141,1814.7,1814.6,1.10167]
[1745844359433,8.91041,1814.7,1814.6,1.10167]
[1745844359635,8.11141,1814.7,1814.6,1.10167]
[1745844359834,8.11141,1814.7,1814.5,3.58409]
[1745844359835,1.10167,1814.6,1814.5,3.58409]
[1745844360032,2.72937,1814.6,1814.5,1.92839]
[1745844360531,2.72937,1814.6,1814.5,0.8267]
[1745844360724,2.72937,1814.6,1814.5,1.92843]
[1745844361129,6.53137,1814.6,1814.5,1.92843]
[1745844362236,3.802,1814.6,1814.5,3.65633]
[1745844364234,1.5881,1814.8,1814.7,1.10161]
[1745844364631,1.95189,1815.0,1814.6,1.7279]
[1745844364835,2.68953,1815.0,1814.9,1.10149]
[1745844365140,6.49153,1815.0,1814.9,1.10149]
[1745844365437,3.802,1815.0,1814.9,1.10149]
[1745844365632,3.802,1815.0,1814.9,4.30929]
[1745844365831,3.802,1815.0,1814.9,5.15689]
[1745844366035,3.802,1815.0,1814.9,6.80659]
[1745844366235,3.802,1815.1,1815.0,1.10143]
[1745844366536,3.802,1815.1,1815.0,3.59573]
[1745844367140,3.802,1815.4,1815.3,1.10125]
[1745844367333,5.5074,1815.4,1815.3,1.10125]
[1745844367732,6.60858,1815.4,1815.3,1.10125]
[1745844368342,5.5074,1815.4,1815.3,1.10125]
[1745844368537,6.60858,1815.4,1815.3,1.10125]
[1745844368732,5.5074,1815.4,1815.3,1.10125]
[1745844368935,5.5074,1815.4,1815.0,0.8446]
[1745844369144,6.83781,1815.3,1815.2,1.10128]
[1745844369735,1.10157,1814.8,1814.7,1.10155]
[1745844369935,1.10153,1814.9,1814.8,1.10151]
[1745844370137,1.10161,1814.8,1814.7,1.10158]
[1745844370438,1.95511,1814.8,1814.7,1.10158]
[1745844370640,0.8535,1814.8,1814.7,1.10158]
[1745844370942,1.95505,1814.8,1814.7,1.10158]
[1745844371142,5.75705,1814.8,1814.7,1.10158]
[1745844371536,4.6555,1814.8,1814.7,1.10161]
[1745844371731,3.802,1814.8,1814.7,1.10161]
[1745844371939,6.55592,1814.8,1814.4,49.3687]